Cogmind - Beta 17 @@@ ROGUE MODE // 2026.08.17 @ 11:31:34 Player: THN-L0C Result: Destroyed by IH-88B(R) with Subdweller Machine Gun Performance ------------- Evolutions (0) 0 Regions Visited (2) 400 Robots Destroyed (24) 120 Value Destroyed (457) 457 Prototype IDs (0) 0 Alien Tech Used (0) 0 Bonus (0) 0 TOTAL SCORE: 977 Bonus ------- None Cogmind --------- Core Integrity 0/250 Matter 284/300 Energy 200/200 System Corruption 0% Temperature Cool (0) Movement Treading (560) Ox4 Location -10/Subcaves Parts ------- > --- POWER (1) -------- Subdweller Power Source > --- PROPULSION (2) --- Spiked Treads Subdweller Monowheel > --- UTILITY (2) ------ Huge Storage Unit Seismic Detector > --- WEAPON (2) ------- Battle Rifle Heavy Battle Rifle > --- INVENTORY (25) --- Subdweller Power Source Subdweller Power Source Subdweller Monowheel Subdweller Monowheel Improved Heat Sink Disposable Heat Sink Disposable Heat Sink Small Storage Unit High-capacity Matter Pod (200) High-capacity Matter Pod (200) Subdweller Optics Improved Terrain Scanner Scrap Shield Beamcaster Subdweller Beam Cannon Subdweller Machine Gun Subdweller Machine Gun Subdweller Machine Gun Battle Cannon Battle Cannon Grenade Launcher Mining Laser Multitool Peak State ------------ > --- POWER ------------ Subdweller Power Source > --- PROPULSION ------- Subdweller Monowheel Subdweller Monowheel > --- UTILITY ---------- Small Storage Unit Huge Storage Unit > --- WEAPON ----------- Beamcaster Battle Cannon > --- INVENTORY -------- Ion Engine Subdweller Power Source Subdweller Power Source Subdweller Power Source Wheel Improved Heat Sink Disposable Heat Sink Disposable Heat Sink High-capacity Matter Pod High-capacity Matter Pod Subdweller Optics Improved Terrain Scanner Seismic Detector Scrap Shield Subdweller Beam Cannon Subdweller Machine Gun Subdweller Machine Gun Subdweller Machine Gun Subdweller Machine Gun Grenade Launcher Mining Laser Multitool [Rating: 19] Favorites ----------- Power Ion Engine Engine Ion Engine Propulsion Light Treads Treads Light Treads Wheel Subdweller Monowheel Utility Huge Storage Unit Device Seismic Detector Storage Huge Storage Unit Weapon Assault Rifle Energy Gun Beamcaster Ballistic Gun Assault Rifle Ballistic Cannon Battle Cannon Launcher Grenade Launcher Special Weapon Mining Laser Build | -11 -10 -10 ------- Run | Yrd Mat Sub Slots Evolved . | . . . Power . | . . . Propulsion . | . . . Utility . | . . . Weapon . | . . . Parts Attached 28 | 8 5 15 Power 5 | 2 . 3 Engine 5 | 2 . 3 Core . | . . . Reactor . | . . . Propulsion 7 | 2 . 5 Treads 3 | 2 . 1 Leg . | . . . Wheel 4 | . . 4 Hover . | . . . Flight . | . . . Utility 4 | 2 1 1 Device 1 | 1 . . Storage 3 | 1 1 1 Processor . | . . . Hackware . | . . . Protection . | . . . Artifact . | . . . Weapon 12 | 2 4 6 Energy Gun 1 | . . 1 Energy Cannon . | . . . Ballistic Gun 8 | 2 2 4 Ballistic Cannon 1 | . . 1 Launcher 1 | . 1 . Special Weapon 1 | . 1 . Impact Weapon . | . . . Slashing Weapon . | . . . Piercing Weapon . | . . . Special Melee Weapon . | . . . Unidentified Prototypes . | . . . Parts Lost 10 | . 1 9 Power 2 | . . 2 Propulsion 3 | . . 3 Utility . | . . . Weapon 5 | . 1 4 Highest Loss Streak 7 | . 1 7 To Critical Strikes . | . . . Average Backups 16 | 4 7 20 Power 2 | . . 3 Propulsion 1 | . 1 2 Utility 6 | 1 3 8 Weapon 5 | 1 3 6 Tool/Special . | . . . Unused Backups 24 | . 3 21 Power 2 | . . 2 Propulsion 4 | . . 4 Utility 9 | . 2 7 Weapon 8 | . 1 7 Tool/Special 1 | . . 1 Average Slot Usage (%) 99 | . 99 99 Engine 13 | . 13 13 Treads 18 | . 27 16 Wheel 9 | . . 11 Device 8 | . 10 8 Storage 19 | . 17 19 Energy Gun 1 | . . 1 Ballistic Gun 23 | . 25 23 Ballistic Cannon 1 | . . 2 Peak Build Rating 19 | 8 8 19 Average Rating 11 | 6 7 13 On Entrance 5 | . 8 8 Avg Prop Armor Cover (%) 11 | . . 11 Naked Turns . | . . . Heaviest Build 98 | 15 19 98 Greatest Support 40 | 40 40 40 Greatest Overweight (x) 9 | . . 9 Average Overweight (x) 3 | . . 4 Largest Inventory Capacity 25 | 8 8 25 Average Capacity 20 | 7 8 24 Most Carried 25 | 8 8 25 Average Carried 17 | 4 7 21 Final Capacity 25 | 8 8 25 Final Carried 24 | 8 8 24 Class Distribution -------------------- 90% | Mutant 9% | Scavenger-Mutant Dominant Class ---------------- Mutant | -10/Materials Mutant | -10/Subcaves Resources | -11 -10 -10 ----------- Run | Yrd Mat Sub Matter Collected 1746 | 503 251 992 Remotely . | . . . Salvage Created 602 | 209 200 193 Parts 48 | 20 18 10 Haulers Intercepted 1 | . 1 . Recyclers Shooed . | . . . Parts Field Recycled . | . . . Retrieved Matter . | . . . Parts Self-Destructed 16 | . . 16 Prevented . | . . . Parts Restored . | . . . Kills | -11 -10 -10 ------- Run | Yrd Mat Sub Combat Hostiles Destroyed 12 | . 7 5 Guns 6 | . 3 3 Cannons 2 | . . 2 AOE 4 | . 4 . Classes Destroyed 9 | 3 4 2 Worker 3 | 2 1 . Builder 1 | . 1 . Tunneler 6 | 6 . . Hauler 1 | . 1 . Recycler 1 | 1 . . Swarmer 3 | . 3 . Grunt 4 | . 4 . Artisan 1 | . . 1 Subdweller 5 | . . 5 Best Kill Streak 4 | 2 4 2 Combat Bots Only 3 | . 3 2 Max Kills in Single Turn 2 | 1 2 1 Gunslinging . | . . . Exploded 2 | . 2 . Melee . | . . . Uniques/NPCs Destroyed . | . . . Combat | -11 -10 -10 -------- Run | Yrd Mat Sub Hostile Shots Fired 97 | . 24 73 Missed 31 | . 7 24 Hits 66 | . 17 49 Projectile 66 | . 17 49 Critical Strikes 1 | . . 1 Damage Taken 1341 | . 229 1112 Core 253 | . 76 177 Absorbed by Shields . | . . . Core Remaining (%) 100 | 100 . . Volleys Fired 111 | 26 26 59 Largest 2 | 2 2 2 Hottest 108 | 40 100 108 Shots Fired 190 | 52 43 95 Gun 151 | 52 36 63 Cannon 27 | . . 27 Launcher 3 | . 3 . Special 9 | . 4 5 Kinetic 176 | 52 36 88 Thermal 11 | . 4 7 Explosive 3 | . 3 . Electromagnetic . | . . . Robot Hit Streak 30 | 8 5 30 Robot Miss Streak 6 | 6 2 2 Penetration Max . | . . . Secondary Targets . | . . . Shots Hit Robots 111 | 33 22 56 Core Hits 31 | 9 12 10 Critical Kills 1 | 1 . . Critical Parts Destroyed 1 | . 1 . Critical Strikes 2 | 1 1 . Destroy 2 | 1 1 . Melee Attacks . | . . . Impact . | . . . Slashing . | . . . Piercing . | . . . Sneak Attacks . | . . . Combat Hostiles . | . . . Follow-up Attacks . | . . . Damage Inflicted 1804 | 421 660 723 Guns 1245 | 421 255 569 Cannons 154 | . . 154 Explosions 394 | . 394 . Melee . | . . . Ramming 11 | . 11 . Kinetic 1379 | 421 255 703 Thermal 20 | . . 20 Explosive 394 | . 394 . Electromagnetic . | . . . Impact . | . . . Slashing . | . . . Piercing . | . . . Highest Corruption . | . . . Average Corruption . | . . . Corruption Purged . | . . . Corruption Blocked . | . . . Overload Shots . | . . . Overflow Damage 30 | . 30 . Projectiles . | . . . Explosions 30 | . 30 . Melee . | . . . Knockbacks 2 | . . 2 Impact . | . . . Kinetic 2 | . . 2 Secondary . | . . . Self-Inflicted Damage . | . . . Shots . | . . . Rammed . | . . . Targets Rammed 1 | . 1 . Kicked . | . . . Crushed 1 | . 1 . Highest Temperature 246 | 6 40 246 Average Temperature 40 | 6 11 96 Received Heat Transfer 656 | . 129 527 Siege Activations . | . . . Martial Activations . | . . . Shielding Activations . | . . . Robots Disrupted . | . . . Combat Hostiles . | . . . Robots Corrupted . | . . . Combat Hostiles . | . . . Parts Fried . | . . . Impact Corruptions . | . . . Robots Melted . | . . . Combat Hostiles . | . . . Parts Melted . | . . . Heat Transferred 37 | . . 37 Parts Sabotaged . | . . . Parts Stolen . | . . . Parts Stripped . | . . . Power Chain Reactions . | . . . Alert | -11 -10 -10 ------- Run | Yrd Mat Sub Maximum Alert Level 1 | . 1 . Low Security (%) 99 | 100 98 . Level 1 . | . 1 . Level 2 . | . . . Level 3 . | . . . Level 4 . | . . . Level 5 . | . . . High Security . | . . . Max Security . | . . . Peak Influence 206 | 10 206 . Initial . | . . . Average 11 | . 16 . Influence Increases 381 | 45 276 60 Destroy 0b10 Robot/C 140 | . 140 . Destroy 0b10 Robot/NC 60 | 45 15 . Destroy Leader 22 | . 22 . Successful Hack 8 | . 8 . Disable Machine 30 | . 30 . Destroy Structure 61 | . 61 . Lose Combat Pursuer 60 | . . 60 Influence Decreases 381 | 45 78 258 Entered New Map 96 | . . 96 Time Decay 275 | 45 68 162 Lost Part 10 | . 10 . Squads Dispatched . | . . . Investigation . | . . . Extermination . | . . . Reinforcement . | . . . Assault . | . . . Garrison . | . . . Intercept . | . . . Searches Triggered . | . . . Construction Impeded . | . . . Haulers Reinforced . | . . . Active Scanning Responses . | . . . Cargo Convoy Interrupts . | . . . Stealth | -11 -10 -10 --------- Run | Yrd Mat Sub Distress Signals 1 | . 1 . Communications Jammed . | . . . Distress Signals . | . . . Times Spotted 36 | . 15 21 Peak Tracking Total 7 | . 4 7 Tactical Retreats 2 | . . 2 Traps | -11 -10 -10 ------- Run | Yrd Mat Sub Traps Triggered 2 | . 2 . Indirectly . | . . . Trap Hack Attempts . | . . . Triggered . | . . . Disarmed . | . . . Reprogrammed . | . . . Reused . | . . . Traps Extracted . | . . . Installed . | . . . Triggered . | . . . Machines | -11 -10 -10 ---------- Run | Yrd Mat Sub Machines Disabled 2 | . 2 . Max in Single Turn 1 | . 1 . Machines Repaired . | . . . Machines Dismantled . | . . . Machines Sabotaged . | . . . Overloaded Fab Kills . | . . . Hacking | -11 -10 -10 --------- Run | Yrd Mat Sub Machines Accessed 3 | . 2 1 Terminals 2 | . 2 . Fabricators . | . . . Repair Stations . | . . . Recycling Units . | . . . Scanalyzers . | . . . Garrison Access . | . . . Total Hacks 10 | . 7 3 Successful 8 | . 5 3 Failed 2 | . 2 . Catastrophic . | . . . Database Lockouts . | . . . Manual 7 | . 7 . Terminals 7 | . 7 . Fabricators . | . . . Repair Stations . | . . . Recycling Units . | . . . Scanalyzers . | . . . Garrison Access . | . . . Terminal Hacks 3 | . . 3 Record 3 | . . 3 Fabricator Hacks . | . . . Repair Station Hacks . | . . . Recycling Unit Hacks . | . . . Scanalyzer . | . . . Garrison Access Hacks . | . . . Unauthorized Hacks 5 | . 5 . Terminals 5 | . 5 . Botnet 2 | . 2 . Operators 1 | . 1 . Skim 2 | . 2 . Fabricators . | . . . Repair Stations . | . . . Recycling Units . | . . . Scanalyzers . | . . . Garrison Access . | . . . Data Cores Recovered . | . . . Used . | . . . Hacking Detections 2 | . 2 . Full Trace Events . | . . . Feedback Events . | . . . Feedback Blocked . | . . . Robot Schematics Acquired . | . . . Robots Built . | . . . Authchips . | . . . Time . | . . . Total Robot Build Rating . | . . . Part Schematics Acquired . | . . . Parts Built . | . . . Authchips . | . . . Time . | . . . Total Part Build Rating . | . . . Part Studies Acquired . | . . . Parts Repaired . | . . . Time . | . . . Parts Recycled . | . . . Recycled Matter . | . . . Retrieved Matter . | . . . Retrieved Components . | . . . Parts Scanalyzed . | . . . Part Schematics Acquired . | . . . Parts Damaged . | . . . Bothacking | -11 -10 -10 ------------ Run | Yrd Mat Sub Used RIF Installer . | . . . Robots Hacked . | . . . Non-combat . | . . . Combat . | . . . Robot Hacks Applied . | . . . Relay Couplers Released . | . . . Fabnet Peak Effective % . | . . . Robots Rewired . | . . . Allies Hacked . | . . . Hacks Repelled . | . . . Allies | -11 -10 -10 -------- Run | Yrd Mat Sub Total Allies . | . . . Largest Group . | . . . Highest-Rated Group . | . . . Highest-Rated Ally . | . . . Total Orders . | . . . Ally Attacks . | . . . Total Damage . | . . . Kills . | . . . Allies Corrupted . | . . . Allies Melted 1 | . . 1 Intel | -11 -10 -10 ------- Run | Yrd Mat Sub Active Infowar (turns) 2119 | 51 543 1525 Seismic 2119 | 51 543 1525 Robot Analysis Total . | . . . Derelict Logs Recovered 1 | . . 1 Drone Launches . | . . . Drone Recoveries . | . . . Exploration | -11 -10 -10 ------------- Run | Yrd Mat Sub Turns Passed 3653 | 345 697 2611 Spaces Moved 1424 | 152 286 986 Core 5 | 5 . . Treads 672 | 147 286 239 Legs . | . . . Wheels 747 | . . 747 Hover . | . . . Flight . | . . . Fastest Speed 50 | 50 160 130 Average Speed 188 | 156 160 201 Slowest Speed 560 | 160 160 560 Overloaded Moves . | . . . Propulsion Burnouts . | . . . Robots Hopped . | . . . Potential Cave-ins . | . . . Cave-ins Triggered . | . . . Exploration Rate (%) 31 | 6 31 57 Regions Visited 2 Branch Regions 1 Pre-discovered Areas . | . . . Known Exits Taken . | . . . Unknown Exits Taken 2 | 1 1 . Scrap Searched 4 | . . 4 Spaces Dug 3 | . 3 . Terrain Destroyed 59 | . 59 . Melee . | . . . Projectile 4 | . 4 . AOE 55 | . 55 . Terrain Rammed . | . . . Walls Destroyed . | . . . Machines Disabled . | . . . Actions | -11 -10 -10 --------- Run | Yrd Mat Sub Total 2176 | 203 471 1502 Wait 542 | 11 134 397 Move 1422 | 151 285 986 Hop . | . . . Pick Up 40 | 7 5 28 Fast Attach 13 | 7 6 . Attach 10 | . 1 9 Detach . | . . . Swap 26 | 1 8 17 Drop 11 | . 5 6 Fire 111 | 26 26 59 Melee . | . . . Ram . | . . . Kick . | . . . Crush 1 | . 1 . Escape Stasis . | . . . Rewire . | . . . Trap . | . . . Miscellaneous . | . . . Route ------- -11/Scrapyard -10/Materials (discovered 2 exits: [*Mat] / *Sub) -10/Subcaves (discovered 4 exits: *Mat x2 / [*Rec] / [*Scr]) History --------- Turn | Location | Event 30 | -11/Scrapyard | Discovered new exit (range 14) 346 | -11/Scrapyard | Entered Materials 347 | -10/Materials | Build established: Mutant 739 | -10/Materials | Discovered new exit (range 3) 785 | -10/Materials | Discovered new exit (range 12) 1043 | -10/Materials | Entered Subcaves 1044 | -10/Subcaves | Approached by a straggling Scientist 1058 | -10/Subcaves | Ambushed by Subdweller buried in earth 1283 | -10/Subcaves | Ambushed by swarm of Subdwellers 1287 | -10/Subcaves | Ambushed by Subdwellers from Twisted Machinery 1874 | -10/Subcaves | Shifting Twisted Machinery released Battle Cannon 1934 | -10/Subcaves | Shifting Twisted Machinery released Sub. Monowheel 1957 | -10/Subcaves | Discovered new exit (range 14) 2057 | -10/Subcaves | Learned Materials security intel 2194 | -10/Subcaves | Shifting Twisted Machinery released Mak. Shrapnel Gun 2275 | -10/Subcaves | Shifting Twisted Machinery released Sub. Beam Cannon 2987 | -10/Subcaves | Discovered new exit (range 14) 3015 | -10/Subcaves | Ambushed by angry Subdweller bent on revenge 3047 | -10/Subcaves | Core integrity fell below 50% 3097 | -10/Subcaves | Lost 7 parts (3n4w) 3389 | -10/Subcaves | Disturbed a concealed Subdweller 3458 | -10/Subcaves | Visited Clippyterm 3463 | -10/Subcaves | Identified exit to Materials 3568 | -10/Subcaves | Core integrity fell below 20% 3596 | -10/Subcaves | A swath of the cavern ceiling suddenly collapsed 3654 | -10/Subcaves | Destroyed by IH-88B(R) with Subdweller Machine Gun Last Messages --------------- Loading 1 Subcaves exit... >>Record! "DCSS" It looks like you want to play a good gam--no, hold up, you probably mean that Altar Unit that's been randomly popping up in unexpected places? As I understand it, humans once performed certain activities at altars. Maybe a relevant keyword would similarly unlock the true potential of your pious nature. Or see you struck down by otherworldly wrath, I don't know. 03539_ Sub. Power Source shoots sparks and powers down. 03541_ Dropped Broken Sub. Power Source. 03555_ Ion Engine destroyed. 03568_ RW-G6A(R) destroyed. 03574_ Acquired 44 matter. 03580_ Acquired Sub. Monowheel. 03592_ Subatomizers dissect the Wheel. 03596_ Cobbler Unit crushed. A swath of the cavern ceiling suddenly collapses. 03629_ Subatomizers dissect the Wheel. 03631_ Acquired 27 matter. 03644_ Subatomizers dissect the Wheel. Map ----- +----------------------------------------------------+ | # #????????????????????????????## ?????????? | | ????????????????????????????????????????? | | ????????????????????????????????????????? | | ## ## ????????????????????????????????????????? | | #? ## ????????????????????????????????????????? | | ?? ???????????????????????????????????????? | | ?? ???????????????????????????????????????? | | ? ????????????????????????????????????????? | | # ????????????????????????????????????????? | | ? ?????????????????????????????????????????? | | ? ?????????????????????????????????????????? | | ??? ??????????????????????????????????????????? | | ??? #??????????????????????????????????????????? | | ??# #??????????????????????????????????????????? | | #? #??????????????????????????????????????????? | | ## ##??????????????????????????????????????????? | | ## #??????????????????????????????????????????? | | #???????????????????????????????????????????? | | #???????????????????????????????????????????? | | #???????????????????????????????????????????? | | #???????????????????????????????????????????? | | ##?????????????????????????????? ????????????? | | [ ##???????????????????????????? ""????????????? | | & ##?????????????????????????" ""?????????????? | | ##????#?? ##????#####??? "" ""????????????? | | ######" ######; @## " ""????????????? | | ## #### #"####=% ;;#; R """"????????????? | | ### "" ####""##=|#### "" ???????????? | | ??# "# "## # ""#??## "" ????????????? | | ??#### ######""#"#"##???### ### "" ????????????? | | ?????###????########???????###???####????????????? | | ?????????????????????????????????????????????????? | | ?????????????????????????????????????????????????? | | ?????????????????????????????????????????????????? | | ?????????????????????????????????????????????????? | | ?????????????????????????????????????????????????? | | ?????????????????????????????????????????????????? | | ?????????????????????????????????????????????????? | | ?????????????????????????????????????????????????? | | ?????????????????????????????????????????????????? | | ?????????????????????????????????????????????????? | | ?????????????????????????????????????????????????? | | ?????????????????????????????????????????????????? | | ?????????????????????????????????????????????????? | | ?????????????????????????????????????????????????? | | | | | | | | | | | +----------------------------------------------------+ Best States ------------- Heat Dissipation 25 Energy Generation 15 Energy Capacity 250 Matter Stores 500 Matter Capacity 500 Sight Range 16 Terrain Scan Density 10 Evasion (%) 40 Recoil Reduction 2 Item Schematics ----------------- None Robot Schematics ------------------ None Fabricated ------------ Nothing Repaired ---------- Nothing Studied --------- None Alien Tech Used ----------------- None Achievements -------------- None Challenges ------------ None Game ------ Seed ModifiedZhirovNanoactuators Manual? 0 Play Time 00:19:11 Cumulative 436.7 hours Start 2026.08.17 @ 11:14:18 End 2026.08.17 @ 11:31:34 Sessions 1 Manual Loads 0 Difficulty Rogue Special Mode None Game No. 324 Rogue 324 Adventurer 0 Explorer 0 Win Type - Total 9 Types 4/0/3/2/0/0/0/0/0/0 Lore% 78 Gallery% 73 Achievement% 55 Wizard Run 0 Options --------- Layout 2 ASCII 0 Keyboard 1 Movement Vi Keybinds 0 Fullscreen 2 Font 32/SmallcapsGlow Map View 77x44 Zoom Use 0% Tactical HUD 1 Map Filters NONE Filters NONE Steam 1 RUN: d5bf74fd-f69c-423c-976d-f9e77d822a29